bitfinex-derivatives/quotes_ETHF0:USTF0_20250430
["timestamp","ask_amount","ask_price","bid_price","bid_amount"]
[1746044737149,10.29065,1804.8,1804.7,1.10816]
[1746044738252,14.11865,1804.8,1804.7,1.10816]
[1746044740353,13.0105,1804.8,1804.7,1.10816]
[1746044740652,14.1186,1804.8,1804.7,1.10816]
[1746044741256,13.0105,1804.8,1804.7,1.10816]
[1746044741556,14.1186,1804.8,1804.7,1.10816]
[1746044741753,7.0358,1804.8,1804.7,1.10816]
[1746044741949,7.0358,1804.8,1804.7,3.22656]
[1746044742255,3.2078,1804.8,1804.7,3.22656]
[1746044742955,2.0827,1804.9,1804.8,1.1081]
[1746044743156,2.0827,1804.9,1804.8,3.1692]
[1746044743853,3.2078,1805.0,1804.9,1.10803]
[1746044744044,3.2078,1805.0,1804.9,5.16843]
[1746044744245,3.2078,1805.0,1804.9,45.96843]
[1746044745756,7.1308,1805.4,1804.9,55.40044]
[1746044745955,3.923,1805.4,1805.3,1.10779]
[1746044746149,2.1395,1805.5,1805.4,1.10773]
[1746044746355,3.2078,1805.6,1805.5,1.10767]
[1746044747060,6.4077,1805.6,1805.5,1.10767]
[1746044747356,8.5472,1805.6,1805.5,1.10767]
[1746044747554,1.10773,1805.4,1805.3,3.11946]
[1746044747749,1.10779,1805.3,1805.2,1.10784]
[1746044747955,1.10788,1805.2,1805.1,1.10786]
[1746044748156,12.36828,1805.2,1805.1,1.10786]
[1746044748558,11.2604,1805.2,1805.1,1.10786]
[1746044748757,12.36825,1805.2,1805.1,1.10786]
[1746044749057,14.46055,1805.2,1805.1,1.10786]
[1746044749359,10.63255,1805.2,1805.1,1.10786]
[1746044749962,9.5247,1805.2,1805.1,1.10786]
[1746044750459,10.63255,1805.2,1805.1,1.10786]
[1746044751262,9.5247,1805.2,1805.1,1.10786]
[1746044752462,6.3169,1805.2,1805.1,1.10786]
[1746044752763,3.923,1805.4,1805.3,1.10779]
[1746044753552,9.1416,1805.4,1805.3,3.20749]
[1746044753755,10.24933,1805.4,1805.3,3.20749]
[1746044753954,9.1416,1805.4,1805.3,3.20749]
[1746044754159,7.1308,1805.4,1805.3,3.20749]
[1746044754359,3.923,1805.4,1805.3,3.20749]
[1746044756157,6.1474,1805.5,1805.4,1.10773]
[1746044756357,6.1474,1805.5,1805.4,3.15993]
[1746044758969,3.2078,1805.6,1805.5,1.10767]
[1746044759262,3.2078,1805.6,1805.5,3.11957]
[1746044761661,6.4231,1805.6,1805.5,1.10767]
[1746044761861,5.3155,1805.6,1805.5,1.10767]
[1746044763066,3.2078,1805.6,1805.5,1.10767]
[1746044767170,3.2078,1805.6,1805.5,4.93567]
[1746044767871,7.437,1805.8,1805.7,1.10754]
[1746044768368,2.0186,1805.9,1805.8,1.10748]
[1746044768566,3.2078,1806.0,1805.9,1.10742]
[1746044769169,5.2334,1806.0,1805.9,1.10742]
[1746044769374,6.34076,1806.0,1805.9,1.10742]
[1746044769871,5.2334,1806.0,1805.9,1.10742]
[1746044770575,7.191,1806.2,1806.1,1.1073]
[1746044770871,5.2264,1806.2,1806.1,1.1073]
[1746044771066,3.2078,1806.2,1806.1,1.1073]
[1746044771273,3.2078,1806.2,1806.1,46.2199]
[1746044771877,3.2078,1806.2,1806.1,44.067]
[1746044772672,8.29204,1806.2,1806.1,44.067]
[1746044772973,8.29204,1806.2,1806.1,40.8]
[1746044773173,1.10736,1806.0,1805.9,1.10739]
[1746044773577,1.10736,1806.0,1805.9,41.90739]
[1746044773874,2.1451,1806.0,1805.9,41.90739]
[1746044774379,2.1451,1806.0,1805.9,1.10739]
[1746044775072,3.25246,1806.0,1805.9,1.10739]
[1746044775377,2.1451,1806.0,1805.9,1.10739]
[1746044775578,3.0869,1806.1,1806.0,1.10736]
[1746044775778,4.1247,1806.1,1806.0,1.10736]
[1746044776076,5.232,1806.1,1806.0,1.10736]
[1746044776275,1.0,1806.7,1806.4,2.76776]
[1746044776479,1.0,1806.7,1806.6,1.10699]
[1746044777072,1.0,1806.7,1806.6,3.13889]
[1746044777680,2.1569,1806.9,1806.8,1.10687]
[1746044778081,7.1569,1806.9,1806.7,1.10689]
[1746044778268,3.17089,1806.8,1806.7,1.10689]
[1746044778471,6.37869,1806.8,1806.7,1.10689]
[1746044779384,9.0998,1806.8,1806.7,1.10689]
[1746044779783,5.892,1806.8,1806.7,1.10689]
[1746044781076,5.892,1806.8,1806.7,3.20059]
[1746044781381,2.064,1806.8,1806.6,3.12346]
[1746044781580,2.1154,1806.7,1806.6,3.12346]
[1746044781980,2.1154,1806.7,1806.6,1.10696]
[1746044782184,2.76773,1806.5,1806.2,1.10721]
[1746044782385,5.21014,1806.4,1806.3,1.10718]
[1746044782576,4.103,1806.4,1806.3,1.10718]
[1746044783076,5.21011,1806.4,1806.3,1.10718]
[1746044783280,7.931,1806.4,1806.3,1.10718]
[1746044783984,3.828,1806.4,1806.3,1.10718]
[1746044785081,7.11193,1806.6,1806.3,1.10718]
[1746044785289,7.11193,1806.6,1806.5,1.10705]
[1746044785983,1.10705,1806.5,1806.4,3.25969]
[1746044786185,1.1072,1806.3,1806.2,1.10717]
[1746044786384,5.23456,1806.4,1806.3,1.10715]
[1746044786890,4.1274,1806.4,1806.1,2.0099]
[1746044787185,4.31509,1806.2,1806.1,1.1073]
[1746044788891,3.2078,1806.2,1806.1,1.1073]
[1746044790386,4.31504,1806.2,1806.1,1.1073]
[1746044792090,5.9759,1806.2,1805.8,2.1346]
[1746044792291,1.10742,1806.0,1805.9,1.10734]
[1746044793695,1.10737,1806.1,1806.0,1.10732]
[1746044794079,1.10737,1806.1,1805.2,4.1501]
[1746044794080,2.76856,1805.9,1805.2,4.1501]
[1746044794284,3.2078,1805.6,1805.5,1.10767]
[1746044794489,7.1048,1805.8,1805.5,1.10767]
[1746044794794,8.21234,1805.8,1805.7,1.10754]
[1746044795094,12.04034,1805.8,1805.7,1.10754]
[1746044795390,10.9328,1805.8,1805.7,1.10754]
[1746044795781,12.04028,1805.8,1805.7,3.20004]
[1746044796191,8.21228,1805.8,1805.7,3.20004]
[1746044798494,8.21233,1805.8,1805.7,1.10754]
[1746044799194,10.9328,1805.8,1805.7,1.10754]
[1746044799393,10.9328,1805.8,1805.7,3.14504]
[1746044799595,12.04028,1805.8,1805.7,3.14504]
[1746044800198,8.21228,1805.8,1805.7,3.14504]
[1746044800398,7.1048,1805.8,1805.7,3.14504]
[1746044801099,4.1381,1806.0,1805.9,1.10742]
[1746044801100,6.40749,1806.0,1805.9,1.10742]
[1746044801599,6.40749,1806.0,1805.9,3.08472]
[1746044802096,6.40749,1806.0,1805.9,1.9773]
[1746044802291,7.58765,1806.2,1805.9,1.9773]
[1746044802292,3.2078,1806.2,1806.1,1.1073]
[1746044802597,3.18022,1806.3,1806.2,1.10724]
[1746044805104,2.073,1806.3,1806.2,1.10724]
[1746044805313,3.18018,1806.3,1806.2,1.10724]
[1746044806113,7.00818,1806.3,1806.2,1.10724]
[1746044807214,7.01217093,1806.3,1806.2,1.10724]
[1746044807612,7.01217093,1806.3,1806.2,3.21244]
[1746044809615,4.93917093,1806.3,1806.2,3.21244]
[1746044810019,3.83199093,1806.3,1806.2,3.21244]
[1746044810317,0.00399093,1806.3,1806.2,3.21244]
[1746044810617,1.11117093,1806.3,1806.2,3.21244]
[1746044810811,0.00399093,1806.3,1806.2,3.21244]
[1746044811419,1.11117093,1806.3,1806.2,3.21244]
[1746044811611,0.00399093,1806.3,1806.2,3.21244]
[1746044812214,0.00399093,1806.3,1806.2,5.15924]
[1746044813715,1.11117093,1806.3,1806.2,3.21244]
[1746044814018,1.10724,1806.2,1806.1,41.90724]
[1746044814220,3.07354,1806.2,1806.1,41.90724]
[1746044814417,3.07354,1806.2,1806.1,1.10724]
[1746044815517,1.10746,1805.9,1805.8,1.10742]
[1746044816218,3.23706,1805.9,1805.8,1.10742]
[1746044816618,2.1296,1805.9,1805.8,1.10742]
[1746044816920,2.1296,1805.9,1805.8,3.17202]
[1746044817306,3.23702,1805.9,1805.8,3.17202]
[1746044817512,2.1296,1805.9,1805.8,3.17202]
[1746044817920,4.31522,1806.0,1805.9,1.10742]
[1746044818117,3.2078,1806.0,1805.9,3.17202]
[1746044818422,3.9683,1806.1,1806.0,1.10736]
[1746044818617,3.9683,1806.1,1806.0,3.17196]
[1746044818816,7.2052,1806.1,1806.0,3.17196]
[1746044819120,8.21209,1806.2,1806.1,1.1073]
[1746044819320,14.38069,1806.2,1806.1,1.1073]
[1746044819620,1.1073,1806.1,1806.0,3.17191]
[1746044819822,14.38067,1806.2,1806.1,1.1073]
[1746044820022,14.38067,1806.2,1806.0,2.0646]
[1746044820023,1.10745,1805.9,1805.8,1.1074]
[1746044820719,1.10745,1805.9,1805.8,3.2618]
[1746044820922,3.13161,1806.0,1805.9,1.10742]
[1746044821125,2.0242,1806.0,1805.9,1.10742]
[1746044821618,9.14868,1806.2,1805.8,2.1544]
[1746044821821,2.0936,1806.2,1806.1,1.1073]
[1746044822019,1.10703,1806.6,1806.2,1.10724]
[1746044822216,1.10706,1806.5,1806.3,3.9261]
[1746044822417,1.10706,1806.5,1806.4,1.9593]
[1746044823225,1.10711,1806.4,1806.3,1.10714]
[1746044823422,4.2464,1806.4,1806.3,1.10714]
[1746044824720,2.125,1806.4,1806.3,1.10714]
[1746044825219,3.2078,1806.5,1806.4,1.10711]
[1746044825917,3.2078,1806.5,1806.4,3.05801]
[1746044826216,8.14285,1806.5,1806.4,1.9509]
[1746044826412,9.0712,1806.5,1806.4,3.05801]
[1746044826625,3.828,1806.5,1806.4,3.05801]
[1746044828224,5.0907,1806.6,1806.5,1.10705]
[1746044828426,5.0907,1806.6,1806.5,3.13925]
[1746044828619,3.9837,1806.6,1806.5,3.13925]
[1746044828825,3.885,1806.8,1806.7,1.10693]
[1746044829028,4.99187,1806.8,1806.7,1.10693]
[1746044829323,7.14717,1806.8,1806.7,1.10693]
[1746044830217,10.97517,1806.8,1806.7,1.10693]
[1746044830627,5.9833,1806.8,1806.7,1.10693]
[1746044835326,3.828,1806.8,1806.7,5.32703]
[1746044835924,4.93487,1806.8,1806.7,5.32703]
[1746044836124,1.10693,1806.7,1806.6,3.13915]
[1746044836424,3.12643,1806.7,1806.6,3.13919]
[1746044836629,1.10699,1806.6,1806.5,1.10701]
[1746044836820,5.15419,1806.6,1806.5,1.10701]
[1746044837224,8.98219,1806.6,1806.5,1.10701]
[1746044837630,1.10705,1806.5,1806.4,3.23817]
[1746044837828,3.11905,1806.5,1806.4,3.23817]
[1746044838028,5.12755,1806.5,1806.4,3.23817]
[1746044838231,13.82402,1806.5,1806.2,7.4388]
[1746044838432,3.11916,1806.4,1806.3,1.10714]
[1746044839133,6.94716,1806.4,1806.3,1.10714]
[1746044839337,6.94716,1806.4,1806.3,3.16474]
[1746044839533,5.84,1806.4,1806.3,3.16474]
[1746044839833,6.94711,1806.4,1806.3,3.16474]
[1746044840334,1.10722,1806.3,1806.2,1.10719]
[1746044840531,3.12222,1806.3,1806.2,1.10719]
[1746044841437,2.015,1806.3,1806.2,1.10719]
[1746044841936,3.12218,1806.3,1806.2,1.10719]
[1746044842642,1.10727,1806.2,1805.9,2.76854]
[1746044842837,6.0815,1806.2,1805.9,2.76853]
[1746044843140,1.10734,1806.1,1806.0,1.10731]
[1746044843435,3.04844,1806.1,1806.0,1.10731]
[1746044844135,1.9411,1806.1,1806.0,1.10731]
[1746044844435,9.00174,1806.2,1806.1,1.1073]
[1746044844636,10.94284,1806.2,1806.1,1.1073]
[1746044845237,7.11484,1806.2,1806.1,1.1073]
[1746044845438,7.11484,1806.2,1806.1,3.215]
[1746044846431,7.11484,1806.2,1806.1,2.1077]
[1746044846637,7.11484,1806.2,1806.1,3.215]
[1746044847042,6.0076,1806.2,1805.9,2.0718]
[1746044847338,1.10742,1805.9,1805.8,6.41758]
[1746044847637,1.10748,1805.8,1805.7,41.9075]
[1746044848037,1.10748,1805.8,1805.7,44.0098]
[1746044848632,5.20638,1805.8,1805.7,44.0098]
[1746044848833,4.0989,1805.8,1805.7,44.0098]
[1746044849835,1.10738,1806.0,1805.7,48.87883]
[1746044850040,5.31145,1806.1,1806.0,1.10736]
[1746044850240,1.10742,1805.9,1805.8,2.0622]
[1746044850441,1.10753,1805.8,1805.7,1.1075]
[1746044850644,3.24443,1805.8,1805.7,41.9075]
[1746044851735,2.1369,1805.8,1805.7,41.9075]
[1746044851931,3.24438,1805.8,1805.7,41.9075]
[1746044853951,1.10754,1805.7,1805.6,2.0622]
[1746044854239,9.06998,1805.7,1805.6,1.1076]
[1746044854542,9.06998,1805.7,1805.6,41.9076]
[1746044854941,9.06998,1805.7,1805.6,1.1076]
[1746044855547,1.1076,1805.6,1805.5,47.20721]
[1746044855945,3.2501,1805.6,1805.5,47.20721]
[1746044857345,2.1425,1805.6,1805.5,47.20721]
[1746044857844,3.2501,1805.6,1805.5,47.20721]
[1746044858741,2.1425,1805.6,1805.5,47.20721]
[1746044858948,5.53662,1806.1,1805.5,47.20721]
[1746044858949,1.10721,1806.3,1806.2,1.10718]
[1746044859144,4.1203,1806.4,1806.3,1.10718]
[1746044859847,5.22747,1806.4,1806.3,1.10718]
[1746044860040,1.10718,1806.3,1806.2,3.24519]
[1746044860236,6.88822,1806.4,1806.1,3.2078]
[1746044860450,1.10739,1806.0,1805.9,1.10737]
[1746044860648,1.10733,1806.1,1806.0,1.10731]
[1746044860950,3.13843,1806.1,1806.0,1.10731]
[1746044861145,1.10736,1806.0,1805.9,3.24538]
[1746044861340,3.13846,1806.0,1805.9,3.24538]
[1746044866649,6.34626,1806.0,1805.9,2.138]
[1746044866955,1.10742,1805.9,1805.8,3.24404]
[1746044867149,3.24402,1805.9,1805.8,5.33234]
[1746044867647,2.1366,1805.9,1805.8,5.33234]
[1746044867849,9.0436,1806.0,1805.9,1.10742]
[1746044868155,3.2078,1806.0,1805.9,3.19022]
[1746044868352,4.31516,1806.0,1805.9,3.19022]
[1746044868754,2.7693,1805.5,1805.0,7.01891619]
[1746044869051,1.10779,1805.3,1805.2,2.0828]
[1746044870951,1.10779,1805.3,1805.2,3.19065]
[1746044871957,1.10779,1805.3,1805.2,2.0828]
[1746044872358,3.23309,1805.3,1805.2,3.19065]
[1746044873553,5.1597,1805.4,1805.3,1.10779]
[1746044873554,6.26746,1805.4,1805.3,1.10779]
[1746044873754,6.26746,1805.4,1805.3,3.22009]
[1746044874458,8.36116,1805.4,1805.3,2.1123]
[1746044875761,8.36116,1805.4,1805.3,3.22009]
[1746044876063,8.36116,1805.4,1805.3,2.1123]
[1746044876568,1.10748,1805.9,1805.8,1.10746]
[1746044877164,1.10748,1805.8,1805.7,2.0576]
[1746044877761,3.19838,1805.8,1805.7,3.16514]
[1746044879168,2.0909,1805.8,1805.7,3.16514]
[1746044880372,6.4516,1806.0,1805.9,1.10742]
[1746044882063,6.4516,1806.0,1805.9,3.14652]
[1746044882774,8.472,1806.0,1805.9,3.14652]
[1746044883371,12.3,1806.0,1805.9,3.14652]
[1746044883769,1.10748,1805.8,1805.7,1.10751]
[1746044883969,1.10748,1805.8,1805.5,3.2078]
[1746044883970,9.40156,1805.8,1805.5,3.2078]
[1746044884175,1.10773,1805.5,1805.4,1.10768]
[1746044885173,6.95613,1805.5,1805.4,1.10768]
[1746044885373,3.828,1805.5,1805.4,8.21508]
[1746044886175,4.97152,1805.8,1805.6,1.1076]
[1746044886176,1.10755,1805.7,1805.6,1.1076]
[1746044886474,4.97153,1805.8,1805.7,1.10754]
[1746044887182,1.10754,1805.7,1805.6,5.31775]
[1746044887483,1.10754,1805.7,1805.6,3.18025]
[1746044889372,5.8876,1805.8,1805.7,1.10754]
[1746044889680,6.99513,1805.8,1805.7,1.10754]
[1746044892685,4.2748,1805.9,1805.8,1.10748]
[1746044892889,4.3152,1806.0,1805.9,1.10742]
[1746044893184,8.4009,1806.0,1805.9,1.10742]
[1746044894789,1.10754,1805.8,1805.7,1.10748]
[1746044895578,3.21064,1805.8,1805.7,1.10748]
[1746044896980,1.1076,1805.7,1805.6,1.10756]
[1746044897386,3.2124,1805.7,1805.6,1.10756]
[1746044897781,3.21234,1805.7,1805.6,1.10756]
[1746044897987,3.21234,1805.7,1805.5,3.2078]
[1746044897988,1.1076,1805.6,1805.5,4.31542]
[1746044898283,4.1329,1805.6,1805.3,4.31554]
[1746044898588,1.10776,1805.4,1805.3,1.10773]
[1746044898792,1.10789,1805.2,1805.1,1.10784]
[1746044900181,1.10791,1805.1,1805.0,1.10792]
[1746044900378,4.1747,1805.2,1805.1,1.10791]
[1746044900579,5.28255,1805.2,1805.1,1.10791]
[1746044902080,4.1747,1805.2,1805.1,1.10791]
[1746044902388,4.31557,1805.4,1805.3,1.10779]
[1746044903390,4.31557,1805.4,1805.3,3.22199]
[1746044909595,3.2078,1805.4,1805.3,3.22199]
[1746044909788,4.31553,1805.4,1805.3,3.22199]
[1746044910089,1.10773,1805.4,1805.3,3.22199]
[1746044914489,6.90382,1805.5,1805.4,1.10773]
[1746044914690,6.90382,1805.5,1805.4,3.14783]
[1746044914888,9.98704,1805.6,1805.4,3.14783]
[1746044914889,5.178,1805.6,1805.5,1.10767]
[1746044915195,4.96346,1805.9,1805.8,1.10748]
[1746044915790,6.96436,1805.9,1805.8,1.10748]
[1746044918099,1.10748,1805.8,1805.7,3.1476]
[1746044918301,3.07178,1805.8,1805.7,3.1476]
[1746044920401,1.9643,1805.8,1805.7,3.1476]
[1746044920804,3.856,1805.9,1805.8,1.10748]
[1746044921002,4.96342,1805.9,1805.8,1.10748]
[1746044921802,3.856,1805.9,1805.8,1.10748]
[1746044922003,3.856,1805.9,1805.8,3.18338]
[1746044922202,7.684,1805.9,1805.8,3.18338]
[1746044923099,3.856,1805.9,1805.8,3.18338]
[1746044923896,3.2078,1806.0,1805.9,1.10742]
[1746044924095,3.2078,1806.0,1805.9,5.28632]
[1746044924300,3.2078,1806.0,1805.9,10.28632]
[1746044924799,3.2078,1806.0,1805.9,10.73655681]
[1746044925108,6.45612,1806.3,1806.2,1.10724]
[1746044925301,8.47862,1806.3,1806.2,1.10724]
[1746044925903,8.47862,1806.3,1806.2,3.05044]
[1746044926201,12.30662,1806.3,1806.2,3.05044]
[1746044927101,1.10724,1806.2,1806.1,41.9073]
[1746044927307,5.16444,1806.2,1806.1,41.9073]
[1746044927704,5.16444,1806.2,1806.1,40.8]
[1746044927903,5.16444,1806.2,1806.1,41.9073]
[1746044928107,8.99244,1806.2,1806.1,1.1073]
[1746044928407,1.10736,1806.1,1806.0,1.10731]
[1746044928607,3.14006,1806.1,1806.0,41.90731]
[1746044929204,2.0327,1806.1,1806.0,41.90731]
[1746044929509,3.14,1806.1,1806.0,3.21261]
[1746044930910,3.14,1806.1,1806.0,1.10731]
[1746044932209,6.968,1806.1,1806.0,1.10731]
[1746044933613,1.10753,1805.8,1805.7,1.10746]
[1746044934208,3.988,1805.8,1805.7,1.10746]
[1746044934712,3.988,1805.8,1805.7,3.10386]
[1746044936905,5.09548,1805.8,1805.7,3.10386]
[1746044937508,3.988,1805.8,1805.7,3.10386]
[1746044940918,5.09548,1805.8,1805.7,3.10386]
[1746044942023,3.988,1805.8,1805.7,5.18996]
[1746044942218,3.2078,1805.9,1805.8,1.10748]
[1746044942412,3.2078,1805.9,1805.8,5.24208]
[1746044942907,4.31522,1805.9,1805.8,46.04208]
[1746044943508,3.2078,1805.9,1805.8,46.04208]
[1746044945217,4.31522,1805.9,1805.8,46.04208]
[1746044945420,3.2078,1805.9,1805.8,46.04208]
[1746044945819,1.10737,1806.0,1805.9,1.10742]
[1746044946019,9.00634,1806.1,1806.0,1.10736]
[1746044947017,9.00634,1806.1,1806.0,3.22216]
[1746044947220,12.83434,1806.1,1806.0,3.22216]
[1746044948922,1.10748,1805.8,1805.7,1.10752]
[1746044949114,3.19289,1806.0,1805.9,1.10742]
[1746044949822,1.10739,1806.0,1805.9,1.10742]
[1746044950022,12.22945,1806.1,1806.0,1.10736]
[1746044950223,12.22945,1806.1,1806.0,3.21906]
[1746044950224,16.05745,1806.1,1806.0,3.21906]
[1746044952126,12.22945,1806.1,1806.0,3.21906]
[1746044956326,9.0788,1806.1,1806.0,3.21906]
[1746044956627,8.1691,1806.1,1806.0,3.21906]
[1746044958227,10.2244,1806.1,1806.0,3.21906]
[1746044959128,14.0524,1806.1,1806.0,3.21906]
[1746044960227,10.2244,1806.1,1806.0,3.21906]
[1746044961326,6.2804,1806.3,1806.2,1.10724]
[1746044961723,6.2804,1806.3,1806.2,3.21494]
[1746044962129,5.1732,1806.3,1806.2,3.21494]
[1746044962327,6.28038,1806.3,1806.2,3.21494]
[1746044962627,4.31488,1806.5,1806.4,1.10711]
[1746044962824,6.37228,1806.5,1806.4,1.10711]
[1746044963126,1.10729,1806.2,1806.1,1.10724]
[1746044963724,1.1073,1806.1,1806.0,3.11553]
[1746044963933,8.29575,1806.1,1806.0,1.10736]
[1746044964230,5.08795,1806.1,1806.0,1.10736]
[1746044965426,3.9806,1806.1,1806.0,1.10736]
[1746044965930,5.0879,1806.1,1806.0,1.10736]
[1746044966129,8.2957,1806.1,1806.0,1.10736]
[1746044967926,8.2957,1806.1,1805.9,1.10739]
[1746044967927,1.10736,1806.0,1805.9,1.10739]
[1746044968230,5.24796,1806.0,1805.9,1.10739]
[1746044968430,5.24796,1806.0,1805.7,1.1075]
[1746044968431,1.10754,1805.8,1805.7,1.1075]
[1746044969026,1.9611,1805.9,1805.6,3.2078]
[1746044969220,1.1076,1805.6,1805.5,44.05022]
[1746044969426,1.10767,1805.5,1805.4,4.31548]
[1746044969820,1.10767,1805.5,1805.4,45.11548]
[1746044970132,3.06877,1805.5,1805.4,41.90768]
[1746044970326,3.06877,1805.5,1805.4,1.10768]
[1746044970726,1.9611,1805.5,1805.4,1.10768]
[1746044970927,2.1283,1805.6,1805.5,1.10767]
[1746044971429,3.2359,1805.6,1805.5,1.10767]
[1746044971626,5.2852,1805.6,1805.5,1.10767]
[1746044974631,1.10767,1805.5,1805.4,2.1426]
[1746044974939,1.10773,1805.4,1805.3,43.90059]
[1746044975128,3.17003,1805.4,1805.3,43.90059]
[1746044975329,3.17003,1805.4,1805.3,41.90779]
[1746044975731,1.10779,1805.3,1805.2,8.34831]
[1746044975928,3.19649,1805.3,1805.2,8.34831]
[1746044976436,3.19649,1805.3,1805.2,2.0553]
[1746044976630,3.19649,1805.3,1805.2,3.16315]
[1746044978131,3.19649,1805.3,1805.2,1.10785]
[1746044979139,1.10785,1805.2,1805.1,3.08526]
[1746044979337,5.20115,1805.2,1805.1,1.10786]
[1746044979939,5.20115,1805.2,1805.1,3.08216]
[1746044985951,4.0933,1805.2,1805.1,3.08216]
[1746044986447,1.10784,1805.3,1805.2,1.10785]
[1746044986652,1.10784,1805.3,1805.2,3.11535]
[1746044986850,3.08454,1805.3,1805.2,3.11535]
[1746044992049,1.10791,1805.2,1805.1,1.10791]
[1746044992250,3.21791,1805.2,1805.1,3.21521]
[1746044994759,7.05091,1805.2,1805.1,2.1073]
[1746044995063,1.10791,1805.1,1805.0,3.24642]
[1746044995262,3.21281,1805.1,1805.0,5.34072]
[1746044995456,5.31241,1805.1,1805.0,5.34072]
[1746044999968,5.31241,1805.1,1804.9,41.90802]
[1746044999969,1.10797,1805.0,1804.9,41.90802]
[1746045000160,5.24467,1805.0,1804.9,1.10802]
[1746045001066,1.10797,1805.1,1805.0,1.10792]
[1746045001268,5.28847,1805.1,1805.0,1.10792]
[1746045002568,5.28847,1805.1,1805.0,3.08932]
[1746045004666,3.17297,1805.1,1805.0,3.08932]
[1746045004971,1.10797,1805.1,1805.0,3.08932]
[1746045005360,8.43198,1805.4,1805.3,1.10779]
[1746045005566,8.13658,1805.4,1805.3,1.10779]
[1746045007571,8.13658,1805.4,1805.2,1.9853]
[1746045008063,8.13658,1805.4,1805.3,1.10779]
[1746045008261,8.13658,1805.4,1805.3,41.90779]
[1746045009971,1.10791,1805.1,1804.8,5.97803]
[1746045010170,2.76963,1805.2,1804.8,5.97803]
[1746045010171,1.10797,1805.0,1804.9,3.08673]
[1746045010766,3.07077,1805.0,1804.9,3.08673]
[1746045011072,1.10816,1804.7,1804.6,4.31599]
[1746045011262,1.10822,1804.6,1804.5,2.0685]
[1746045011468,1.10822,1804.6,1804.5,46.05018]
[1746045011670,1.10822,1804.6,1804.5,44.9419]
[1746045011877,1.1083,1804.5,1804.4,1.10828]
[1746045012173,1.1083,1804.5,1804.4,3.18168]
[1746045012368,1.1083,1804.5,1804.4,43.98168]
[1746045013382,4.31605,1804.6,1804.5,1.10828]
[1746045014879,1.10828,1804.5,1804.4,43.9817]
[1746045017974,1.10828,1804.5,1804.4,1.1083]
[1746045018272,1.10853,1804.1,1804.0,3.11378]
[1746045018478,1.10851,1804.2,1804.1,1.10853]
[1746045018779,4.93051,1804.2,1804.1,3.04613]
[1746045019870,3.822,1804.2,1804.1,3.04613]
[1746045020074,4.93046,1804.2,1804.1,3.04613]
[1746045023072,3.822,1804.2,1804.0,3.828]
[1746045023268,1.10859,1804.0,1803.9,5.8156]
[1746045023467,1.10859,1804.0,1803.9,9.01735]
[1746045023678,1.10859,1804.0,1803.9,49.81735]
[1746045023980,1.10859,1804.0,1803.9,3.828]
[1746045024178,1.10865,1803.9,1803.8,1.10866]
[1746045024371,3.14825,1803.9,1803.8,1.10866]
[1746045024970,3.14825,1803.9,1803.8,3.20176]
[1746045025180,1.10865,1803.9,1803.8,3.20176]
[1746045025477,1.10864,1804.0,1803.9,1.10862]
[1746045027980,1.10871,1803.8,1803.7,3.16785]
[1746045030683,4.93169,1803.9,1803.8,1.10871]
[1746045031885,1.10871,1803.8,1803.7,3.16782]
[1746045032974,4.93169,1803.9,1803.8,1.10871]
[1746045033171,4.93165,1803.9,1803.8,1.10871]
[1746045034281,4.93165,1803.9,1803.8,4.93671]
[1746045037284,4.93165,1803.9,1803.8,3.828]
[1746045037484,4.93165,1803.9,1803.8,4.93671]
[1746045038088,4.93165,1803.9,1803.8,1.10871]
[1746045040084,4.92747533,1803.9,1803.8,1.10871]
[1746045040279,4.92747533,1803.9,1803.8,4.93671]
[1746045042485,4.92747533,1803.9,1803.8,6.96141]
[1746045044189,4.92747533,1803.9,1803.8,5.8527]
[1746045044487,7.03617533,1803.9,1803.8,3.828]
[1746045044684,10.24397533,1803.9,1803.8,3.828]
[1746045044884,1.10896,1803.4,1803.3,1.956]
[1746045045091,1.10894,1803.5,1803.3,1.956]
[1746045045386,3.2078,1803.8,1803.6,1.10883]
[1746045045593,2.0733,1803.9,1803.8,1.10871]
[1746045045787,2.0733,1803.9,1803.7,3.06471]
[1746045045788,1.10871,1803.8,1803.7,3.06471]
[1746045045978,1.10871,1803.8,1803.7,7.05261]
[1746045046182,3.182,1803.9,1803.8,1.10871]
[1746045046378,3.182,1803.9,1803.8,3.16871]
[1746045046583,1.1087,1803.9,1803.8,3.16871]
[1746045047093,1.1087,1803.9,1803.8,6.99671]
[1746045048493,4.92061,1804.0,1803.9,1.10865]
[1746045048696,4.92061,1804.0,1803.9,3.15465]
[1746045048697,4.92059,1804.0,1803.9,3.15465]
[1746045049000,5.31637,1804.1,1804.0,1.10859]
[1746045049293,5.31637,1804.1,1804.0,3.15459]
[1746045049491,5.31637,1804.1,1804.0,5.24069]
[1746045050297,5.31637,1804.1,1804.0,9.06869]
[1746045051196,5.31637,1804.1,1804.0,5.24069]
[1746045051397,7.39517,1804.1,1804.0,5.24069]
[1746045051602,1.10867,1803.9,1803.8,1.10866]
[1746045051802,1.10867,1803.9,1803.8,5.10046]
[1746045052004,5.21442,1804.0,1803.9,1.10865]
[1746045052205,5.21442,1804.0,1803.9,3.13815]
[1746045052604,5.31637,1804.1,1804.0,1.10859]
[1746045052799,4.2078,1804.1,1804.0,3.13809]